bitfinex/quotes_SOLUSD_20250118
["timestamp","ask_amount","ask_price","bid_price","bid_amount"]
[1737180095231,9.19e-05,226.89,226.86,4.408]
[1737180095635,35.27711067,226.87,226.8,4.4091]
[1737180095919,9.19e-05,226.89,226.84,20.0]
[1737180096223,9.19e-05,226.89,226.86,20.0]
[1737180096541,9.19e-05,226.89,226.85,35.27711067]
[1737180096720,9.19e-05,226.89,226.87,35.27711067]
[1737180097615,0.0923149,226.92,226.91,20.0]
[1737180097616,9.423e-05,226.92,226.91,20.0]
[1737180097918,9.423e-05,226.92,226.91,55.27711067]
[1737180098330,9.423e-05,226.92,226.88,4.4076]
[1737180098558,9.423e-05,226.92,226.9,35.27711067]
[1737180099532,9.423e-05,226.92,226.91,4.407]
[1737180100243,9.423e-05,226.92,226.87,4.4078]
[1737180100417,35.27711067,226.91,226.85,4.438]
[1737180100739,35.27711067,226.87,226.85,0.03]
[1737180101542,35.27711067,226.89,226.85,0.03]
[1737180101931,35.27711067,226.87,226.77,50.71111067]
[1737180102126,35.27711067,226.85,226.77,4.4097]
[1737180102643,35.27711067,226.87,226.77,39.68681067]
[1737180102944,35.27711067,226.87,226.77,50.71111067]
[1737180103130,35.27711067,226.89,226.79,35.27711067]
[1737180103444,35.27711067,226.87,226.8,20.0]
[1737180103826,35.27711067,226.83,226.77,4.4096]
[1737180104029,35.27711067,226.79,226.75,0.03]
[1737180104347,35.27711067,226.81,226.75,0.03]
[1737180104519,35.27711067,226.85,226.75,39.71711067]
[1737180104718,35.27711067,226.88,226.81,20.0]
[1737180104922,35.2772049,226.92,226.83,20.0]
[1737180105123,35.2772049,226.92,226.82,35.27711067]
[1737180105443,35.27711067,226.86,226.76,35.27711067]
[1737180105624,4.40689423,226.92,226.75,4.44]
[1737180105625,9.423e-05,226.92,226.81,20.0]
[1737180105831,35.27711067,226.91,226.84,4.4083]
[1737180106025,35.27711067,226.91,226.85,20.0]
[1737180106229,9.423e-05,226.92,226.87,20.0]
[1737180106647,9.423e-05,226.92,226.9,35.27711067]
[1737180106844,9.423e-05,226.92,226.86,35.27711067]
[1737180107139,9.423e-05,226.92,226.91,20.0]
[1737180107849,9.423e-05,226.92,226.9,35.27711067]
[1737180108051,9.423e-05,226.92,226.91,4.407]
[1737180108843,35.27711067,227.06,226.91,4.407]
[1737180109018,35.27711067,227.06,226.96,35.27711067]
[1737180109344,0.063,227.07,226.98,35.27711067]
[1737180109551,0.063,227.07,227.01,20.0]
[1737180109873,0.0001,227.07,227.06,35.27711067]
[1737180110169,0.0001,227.07,227.06,39.68121067]
[1737180110383,0.0001,227.11,227.09,20.0]
[1737180110548,0.0001,227.11,227.1,35.27711067]
[1737180110949,0.063,227.21,227.13,20.0]
[1737180111148,0.063,227.21,227.19,35.27711067]
[1737180111149,0.0001,227.21,227.19,35.27711067]
[1737180111449,1.362e-05,227.2,227.09,2.3976762]
[1737180111644,1.362e-05,227.2,227.09,0.65999133]
[1737180111852,1.362e-05,227.2,227.19,35.27711067]
[1737180112155,1.362e-05,227.2,227.19,39.67871067]
[1737180112876,1.362e-05,227.2,227.19,4.4016]
[1737180113768,1.362e-05,227.2,227.19,24.4016]
[1737180114268,1.362e-05,227.2,227.1,11.0081]
[1737180114480,1.362e-05,227.2,227.18,20.0]
[1737180114967,1.362e-05,227.2,227.19,20.0]
[1737180115478,1.362e-05,227.2,227.19,55.27711067]
[1737180115986,1.362e-05,227.2,227.19,20.0]
[1737180116477,1.362e-05,227.2,227.08,23.77048764]
[1737180116647,1.362e-05,227.2,227.12,35.27711067]
[1737180117045,1.362e-05,227.2,227.14,35.27711067]
[1737180117485,1.362e-05,227.2,227.12,35.27711067]
[1737180117659,1.362e-05,227.2,227.14,35.27711067]
[1737180118180,1.362e-05,227.2,227.18,24.4017]
[1737180118383,1.362e-05,227.2,227.19,20.0]
[1737180118874,1.362e-05,227.2,227.18,39.67881067]
[1737180120088,10.6881,227.51,227.2,13.1976]
[1737180120089,0.063,227.44,227.2,13.1976]
[1737180120252,0.063,227.44,227.39,4.3977]
[1737180121065,0.063,227.44,227.39,39.67481067]
[1737180121374,0.063,227.44,227.39,50.66911067]
[1737180121556,0.063,227.44,227.36,4.3982]
[1737180122051,0.063,227.44,227.37,35.27711067]
[1737180122249,0.063,227.44,227.4,4.3975]
[1737180122459,0.063,227.44,227.41,35.27711067]
[1737180123081,0.063,227.44,227.4,4.3975]
[1737180123575,0.063,227.44,227.43,55.27711067]
[1737180123965,0.063,227.44,227.37,4.3981]
[1737180124166,35.27711067,227.42,227.35,4.3983]
[1737180124393,0.063,227.44,227.39,20.0]
[1737180124562,0.063,227.44,227.42,20.0]
[1737180124763,0.063,227.44,227.39,35.27711067]
[1737180124764,0.063,227.44,227.41,35.27711067]
[1737180124988,0.063,227.44,227.43,20.0]
[1737180125990,0.0001,227.44,227.43,35.27711067]
[1737180126588,35.27711067,227.58,227.46,20.0]
[1737180126780,35.27711067,227.62,227.55,20.0]
[1737180126961,35.27711067,227.72,227.61,55.27711067]
[1737180127160,39.66761067,227.76,227.65,35.27711067]
[1737180127373,0.063,227.77,227.7,35.27711067]
[1737180127755,0.063,227.77,227.51,0.65903829]
[1737180127974,0.063,227.77,227.53,20.0]
[1737180128182,0.063,227.77,227.54,0.65882907]
[1737180128489,0.063,227.77,227.74,35.27711067]
[1737180128659,0.063,227.77,227.76,20.0]
[1737180128859,0.063,227.77,227.76,35.27711067]
[1737180129562,35.27711067,227.9,227.76,35.27711067]
[1737180129770,35.27711067,227.96,227.86,35.27711067]
[1737180130087,35.27711067,227.98,227.88,35.27711067]
[1737180130576,4.3869,227.95,227.86,35.27711067]
[1737180130776,35.27711067,227.98,227.86,39.66561067]
[1737180131085,35.27711067,227.96,227.86,39.66561067]
[1737180131384,35.27711067,227.98,227.88,35.27711067]
[1737180131588,35.27711067,228.0,227.9,35.27711067]
[1737180132077,35.27711067,228.04,227.94,35.27711067]
[1737180132661,35.27711067,228.13,228.03,35.27711067]
[1737180132861,35.27711067,228.13,227.92,24.43691267]
[1737180132862,35.27711067,228.17,228.07,35.27711067]
[1737180133159,35.27711067,228.19,228.09,35.27711067]
[1737180133355,4.3809,228.26,228.11,35.27711067]
[1737180133560,4.3809,228.26,228.17,35.27711067]
[1737180133781,50.08291067,228.27,228.17,35.27711067]
[1737180133965,4.3808,228.27,228.17,35.27711067]
[1737180134173,35.27711067,228.3,228.19,35.27711067]
[1737180134377,35.27711067,228.26,228.15,35.27711067]
[1737180134680,35.27711067,228.28,228.19,35.27711067]
[1737180134881,4.3802,228.3,228.21,35.27711067]
[1737180135057,4.3799,228.32,228.23,35.27711067]
[1737180135262,35.27711067,228.35,228.25,35.27711067]
[1737180135564,35.27711067,228.35,228.07,37.07459736]
[1737180135565,35.27711067,228.44,228.33,35.27711067]
[1737180135962,4.3771,228.46,228.31,35.27711067]
[1737180136265,0.063,228.47,228.45,35.27711067]
[1737180138384,0.063,228.47,228.35,15.3273]
[1737180138628,4.3774,228.45,228.34,35.27711067]
[1737180138894,0.063,228.47,228.44,35.27711067]
[1737180139582,4.3731,228.67,228.49,20.0]
[1737180139781,35.27711067,228.66,228.57,35.27711067]
[1737180140002,4.3731,228.67,228.57,35.27711067]
[1737180140181,4.3731,228.67,228.55,35.27711067]
[1737180140386,4.3731,228.67,228.57,35.27711067]
[1737180140582,35.27711067,228.68,228.59,35.27711067]
[1737180140907,35.27711067,228.68,228.54,4.3755]
[1737180140908,35.27711067,228.66,228.55,35.27711067]
[1737180141118,35.27711067,228.68,228.57,35.27711067]
[1737180141705,15.3011,228.74,228.5,4.3763]
[1737180141706,15.3011,228.74,228.59,35.27711067]
[1737180141912,35.27711067,228.65,228.55,35.27711067]
[1737180142288,35.27711067,228.69,228.59,35.27711067]
[1737180142487,35.27711067,228.71,228.61,35.27711067]
[1737180142696,35.27711067,228.69,228.52,4.3759]
[1737180143005,35.27711067,228.65,228.55,35.27711067]
[1737180143182,35.27711067,228.76,228.49,35.27711067]
[1737180143183,35.27711067,228.59,228.49,35.27711067]
[1737180143512,58.9982,228.82,228.58,35.27711067]
[1737180143803,35.27711067,228.69,228.58,35.27711067]
[1737180144017,35.27711067,228.71,228.6,35.27711067]
[1737180144221,35.27711067,228.73,228.62,35.27711067]
[1737180144516,35.27711067,228.69,228.58,35.27711067]
[1737180144717,35.27711067,228.7,228.59,35.27711067]
[1737180145010,35.27711067,228.72,228.61,35.27711067]
[1737180145191,35.27711067,228.74,228.63,35.27711067]
[1737180145394,35.27711067,228.76,228.65,35.27711067]
[1737180145698,35.27711067,228.74,228.63,35.27711067]
[1737180145895,35.27711067,228.74,228.65,35.27711067]
[1737180146196,35.27711067,228.76,228.65,35.27711067]
[1737180146403,15.2964,228.81,228.49,37.85665578]
[1737180146404,35.27711067,228.78,228.67,35.27711067]
[1737180146609,4.3708,228.79,228.7,35.27711067]
[1737180146781,15.2864,228.96,228.77,35.27711067]
[1737180147108,35.27711067,228.87,228.76,35.27711067]
[1737180147407,35.27711067,228.83,228.74,35.27711067]
[1737180147614,35.27711067,228.85,228.74,35.27711067]
[1737180148025,35.27711067,228.83,228.72,35.27711067]
[1737180148324,35.27711067,228.81,228.7,35.27711067]
[1737180148620,4.3717,228.75,228.65,35.27711067]
[1737180148814,4.3717,228.75,228.48,56.45981514]
[1737180148815,4.3717,228.75,228.67,35.27711067]
[1737180148996,4.3713,228.77,228.67,35.27711067]
[1737180149199,35.27711067,228.76,228.65,35.27711067]
[1737180149391,35.27711067,228.74,228.65,35.27711067]
[1737180149606,35.27711067,228.72,228.61,35.27711067]
[1737180149812,35.27711067,228.72,228.52,10.9398]
[1737180149813,35.27711067,228.68,228.49,4.3765]
[1737180149998,55.27711067,228.65,228.56,35.27711067]
[1737180150315,35.27711067,228.67,228.56,35.27711067]
[1737180150526,35.27711067,228.61,228.52,35.27711067]
[1737180150702,39.65211067,228.57,228.47,35.27711067]
[1737180151026,35.27711067,228.55,228.45,35.27711067]
[1737180151216,20.0,228.5,228.41,35.27711067]
[1737180151395,35.27711067,228.45,228.35,4.3792]
[1737180151596,20.0,228.42,228.35,35.27711067]
[1737180151902,35.27711067,228.41,228.31,35.27711067]
[1737180152101,35.27711067,228.43,228.33,35.27711067]
[1737180152296,35.27711067,228.41,228.31,35.27711067]
[1737180152501,7.78,228.46,228.26,4.3808]
[1737180152502,35.27711067,228.45,228.33,35.27711067]
[1737180152716,35.27711067,228.5,228.38,35.27711067]
[1737180153092,15.3146,228.54,228.25,15.3337]
[1737180153093,4.3756,228.54,228.45,35.27711067]
[1737180153428,39.65271067,228.54,228.43,35.27711067]
[1737180153657,35.27711067,228.54,228.45,35.27711067]
[1737180153800,20.0,228.51,228.43,35.27711067]
[1737180154126,35.27711067,228.5,228.39,35.27711067]
[1737180154296,35.27711067,228.48,228.37,35.27711067]
[1737180154499,35.27711067,228.44,228.33,35.27711067]
[1737180154921,35.27711067,228.52,228.41,35.27711067]
[1737180155125,2.5232,228.61,228.33,4.3795]
[1737180155126,4.375,228.57,228.47,35.27711067]
[1737180155317,4.3747,228.59,228.36,20.0]
[1737180155833,7.8,228.67,228.37,0.65658064]
[1737180156126,14.5139,228.65,228.37,3.35968064]
[1737180156333,14.5139,228.65,228.55,35.27711067]
[1737180156535,35.27711067,228.64,228.53,35.27711067]
[1737180156750,35.27711067,228.61,228.53,20.0]
[1737180157214,35.27711067,228.63,228.52,35.27711067]
[1737180157538,35.27711067,228.61,228.5,35.27711067]
[1737180157913,35.27711067,228.57,228.49,4.3765]
[1737180158140,35.27711067,228.6,228.49,39.65361067]
[1737180158341,35.27711067,228.53,228.39,4.3784]
[1737180158518,35.27711067,228.51,228.42,35.27711067]
[1737180158725,35.27711067,228.47,228.39,4.3784]
[1737180158913,35.27711067,228.47,228.36,35.27711067]
[1737180159114,35.27711067,228.38,228.29,4.3803]
[1737180159615,35.27711067,228.38,228.27,39.65771067]
[1737180159833,35.27711067,228.36,228.25,35.27711067]
[1737180160022,35.27711067,228.34,228.25,35.27711067]
[1737180160226,35.27711067,228.36,228.25,35.27711067]
[1737180160728,35.27711067,228.34,228.23,35.27711067]
[1737180160912,35.27711067,228.48,228.12,0.657077]
[1737180160913,35.27711067,228.36,228.25,35.27711067]
[1737180161113,35.27711067,228.32,228.21,35.27711067]
[1737180161331,35.27711067,228.3,228.2,4.3821]
[1737180161638,35.27711067,228.3,228.19,35.27711067]
[1737180162030,35.27711067,228.28,228.17,35.27711067]
[1737180162238,35.27711067,228.26,228.16,4.3827]
[1737180162539,35.27711067,228.21,228.11,39.66071067]
[1737180162839,10.1403,228.32,227.92,56.79597381]
[1737180162840,35.27711067,228.15,228.05,35.27711067]
[1737180163019,35.27711067,228.12,228.02,39.66261067]
[1737180163218,35.27711067,228.03,227.94,17.559114]
[1737180163416,35.27711067,228.01,227.94,0.03]
[1737180163739,35.27711067,227.95,227.94,0.03]
[1737180164043,35.27711067,227.99,227.94,0.03]
[1737180164225,35.27711067,228.01,227.94,20.03]
[1737180164534,35.27711067,228.03,227.94,0.03]
[1737180164733,35.27711067,228.03,227.93,39.65442507]
[1737180164952,35.27711067,228.05,227.95,35.27711067]
[1737180165159,35.27711067,228.09,228.02,20.0]
[1737180165330,12.0033,228.14,227.96,35.27711067]
[1737180165663,35.27711067,228.09,228.01,20.0]
[1737180166163,35.27711067,228.05,227.96,35.27711067]
[1737180166343,35.27711067,228.11,228.03,20.0]
[1737180166639,4.383,228.16,228.09,20.0]
[1737180166640,35.27711067,228.16,228.09,20.0]
[1737180167343,35.27711067,228.1,228.0,35.27711067]
[1737180167721,35.27711067,228.12,228.03,20.0]
[1737180167931,35.27711067,228.14,228.04,35.27711067]
[1737180168248,7.6,228.25,227.95,0.65775006]
[1737180168249,35.27711067,228.18,228.12,20.0]
[1737180168451,35.27711067,228.2,228.12,20.0]
[1737180168628,35.27711067,228.27,228.21,20.0]
[1737180168834,35.27711067,228.25,228.16,35.27711067]
[1737180169035,35.27711067,228.25,228.14,35.27711067]
[1737180169247,35.27711067,228.29,228.21,20.0]
[1737180169553,35.27711067,228.35,228.27,20.0]
[1737180169727,35.27711067,228.33,228.22,35.27711067]
[1737180169922,35.27711067,228.31,228.22,35.27711067]
[1737180170125,35.27711067,228.31,228.25,20.0]
[1737180170537,7.54,228.42,228.2,4.3821]
[1737180170538,10.9431,228.46,228.29,20.0]
[1737180170736,35.27711067,228.32,228.29,20.0]
[1737180171251,35.27711067,228.32,228.22,35.27711067]
[1737180171456,35.27711067,228.3,228.21,4.3818]
[1737180171653,35.27711067,228.26,228.18,4.3824]
[1737180172228,35.27711067,228.26,228.16,35.27711067]
[1737180172429,35.27711067,228.24,228.16,4.3828]
[1737180172647,35.27711067,228.26,228.16,59.65991067]
[1737180172835,35.27711067,228.24,228.15,35.27711067]
[1737180173048,35.27711067,228.24,228.12,4.3836]
[1737180173049,35.27711067,228.31,228.21,35.27711067]
[1737180173248,35.27711067,228.31,228.24,20.0]
[1737180173620,35.27711067,228.35,228.28,20.0]
[1737180173931,35.27711067,228.39,228.29,35.27711067]
[1737180174247,35.27711067,228.41,228.34,20.0]
[1737180174443,35.27711067,228.39,228.29,35.27711067]
[1737180174643,35.27711067,228.39,228.32,20.0]
[1737180174948,35.27711067,228.41,228.34,20.0]
[1737180175137,35.27711067,228.45,228.38,20.0]
[1737180175340,35.34011067,228.53,228.45,20.0]
[1737180175532,35.27711067,228.5,228.42,4.3777]
[1737180175732,35.27711067,228.5,228.4,39.65531067]
[1737180175969,35.27711067,228.52,228.45,20.0]
[1737180176272,0.063,228.53,228.44,35.27711067]
[1737180176443,0.063,228.53,228.47,20.0]
[1737180176755,0.063,228.53,228.49,20.0]
[1737180177055,0.063,228.53,228.47,20.0]
[1737180177250,35.27711067,228.52,228.41,35.27711067]
[1737180177436,0.063,228.53,228.45,35.27711067]
[1737180177636,0.063,228.53,228.48,20.0]
[1737180177834,0.063,228.53,228.43,35.27711067]
[1737180178039,35.27711067,228.52,228.41,35.27711067]
[1737180178232,35.27711067,228.52,228.44,20.0]
[1737180178777,35.27711067,228.5,228.44,20.0]
[1737180178985,35.27711067,228.5,228.39,35.27711067]
[1737180179252,0.063,228.53,228.46,20.0]
[1737180179458,35.27711067,228.52,228.46,20.0]
[1737180179643,35.27711067,228.5,228.39,35.27711067]
[1737180179842,35.27711067,228.52,228.43,35.27711067]
[1737180180047,35.27711067,228.5,228.44,20.0]
[1737180180460,35.27711067,228.5,228.39,35.27711067]
[1737180180747,35.27711067,228.46,228.37,35.27711067]
[1737180180954,35.27711067,228.46,228.35,35.27711067]
[1737180181250,35.27711067,228.48,228.39,35.27711067]
[1737180181551,4.4389,228.53,228.36,4.379]
[1737180181552,35.27711067,228.46,228.36,4.379]
[1737180181775,35.27711067,228.42,228.33,35.27711067]
[1737180182066,0.063,228.53,228.4,35.27711067]
[1737180182230,0.063,228.53,228.52,35.27711067]
[1737180182429,0.063,228.76,228.55,20.0]
[1737180182430,35.27711067,228.66,228.55,20.0]
[1737180182637,35.27711067,228.62,228.51,35.27711067]
[1737180182838,17.79922549,228.76,228.47,0.65630326]
[1737180183040,6.87062549,228.76,228.49,20.0]
[1737180183242,0.063,228.76,228.5,0.65595558]
[1737180183447,4.4345,228.76,228.49,20.0]
[1737180183667,0.063,228.76,228.51,15.3165]
[1737180183852,35.27711067,228.75,228.68,20.0]
[1737180184152,0.063,228.76,228.68,20.0]
[1737180184457,0.063,228.76,228.7,20.0]
[1737180184755,0.063,228.76,228.72,20.0]
[1737180185352,0.063,228.76,228.7,20.0]
[1737180185861,0.063,228.76,228.74,20.0]
[1737180186046,0.063,228.76,228.75,35.27711067]
[1737180186243,0.063,228.76,228.75,20.0]
[1737180186751,0.063,228.76,228.71,4.3723]
[1737180186937,0.063,228.76,228.56,0.65578967]
[1737180187143,0.063,228.76,228.66,35.27711067]
[1737180187663,0.063,228.76,228.69,20.0]
[1737180187856,35.27711067,228.75,228.61,4.3742]
[1737180188039,35.27711067,228.68,228.61,4.3742]
[1737180188379,35.27711067,228.68,228.58,35.27711067]
[1737180188555,35.27711067,228.64,228.57,4.375]
[1737180188757,20.0,228.73,228.53,4.3756]
[1737180189053,35.27711067,228.64,228.53,4.3756]
[1737180189265,35.27711067,228.6,228.53,4.3756]
[1737180189564,35.27711067,228.6,228.51,4.376]
[1737180189751,35.27711067,228.64,228.54,35.27711067]
[1737180190266,35.27711067,228.62,228.52,35.27711067]
[1737180190457,4.3721,228.72,228.51,4.376]
[1737180190458,35.27711067,228.6,228.51,4.376]
[1737180190759,35.27711067,228.58,228.49,4.3764]
[1737180190966,35.27711067,228.55,228.49,4.3764]
[1737180191258,0.09269338,228.5,228.49,4.3764]
[1737180191763,0.09269338,228.5,228.49,59.65351067]
[1737180192172,0.09269338,228.5,228.49,39.65351067]
[1737180192738,8.965e-05,228.51,228.49,39.65351067]
[1737180193353,2.323e-05,228.52,228.51,20.0]
[1737180193764,2.323e-05,228.52,228.51,24.3761]
[1737180193960,2.323e-05,228.52,228.51,4.3761]
[1737180194461,8.543e-05,228.53,228.51,40.30947388]
[1737180194646,8.543e-05,228.53,228.51,39.65321067]
[1737180195149,0.0938205,228.59,228.54,20.0]
[1737180195150,8.159e-05,228.59,228.54,20.0]
[1737180195347,8.159e-05,228.59,228.58,35.27711067]
[1737180195665,35.34011067,228.76,228.61,20.0]
[1737180195865,0.063,228.76,228.7,20.0]
[1737180196192,0.063,228.76,228.72,20.0]
[1737180196549,35.34011067,228.76,228.67,35.27711067]
[1737180196744,35.27711067,228.74,228.63,35.27711067]
[1737180197045,35.27711067,228.72,228.62,4.374]
[1737180197750,35.27711067,228.72,228.61,35.27711067]
[1737180197751,35.27711067,228.7,228.65,4.3734]
[1737180198752,35.27711067,228.72,228.65,4.3734]
[1737180199057,35.27711067,228.66,228.57,4.375]
[1737180199254,35.27711067,228.64,228.57,4.375]
[1737180199770,35.27711067,228.64,228.58,20.0]
[1737180199952,35.27711067,228.66,228.58,20.0]
[1737180200156,35.27711067,228.66,228.57,39.65211067]
[1737180200157,35.27711067,228.71,228.64,20.0]
[1737180200354,35.27711067,228.73,228.64,20.0]
[1737180200562,35.27711067,228.67,228.57,50.58961067]
[1737180200770,35.27711067,228.71,228.64,20.0]
[1737180201269,35.27711067,228.69,228.64,20.0]
[1737180201857,35.27711067,228.69,228.57,15.3125]
[1737180201858,35.27711067,228.71,228.62,30.9351]
[1737180202059,35.27711067,228.68,228.62,30.9351]
[1737180202571,35.27711067,228.64,228.6,4.3744]
[1737180202886,39.71161067,228.76,228.63,20.0]
[1737180202887,35.27711067,228.66,228.63,20.0]
[1737180203250,35.27711067,228.68,228.63,20.0]
[1737180203554,35.27711067,228.71,228.64,20.0]
[1737180203761,35.34011067,228.76,228.73,20.0]
[1737180203972,0.063,228.76,228.73,20.0]
[1737180204174,35.34011067,228.76,228.73,20.0]
[1737180204351,0.063,228.76,228.73,20.0]
[1737180205370,35.27711067,228.8,228.73,20.0]
[1737180205574,10.9156,229.03,228.81,20.0]
[1737180205882,35.27711067,228.96,228.89,20.0]
[1737180206169,0.063,228.99,228.95,20.0]
[1737180206355,0.063,228.99,228.95,55.27711067]
[1737180206671,35.27711067,229.12,228.97,35.27711067]
[1737180206879,0.063,229.2,229.1,20.0]
[1737180207048,35.34011067,229.2,229.12,20.0]
[1737180207373,35.27711067,229.18,229.12,20.0]
[1737180207555,35.27711067,229.16,229.1,20.0]
[1737180207754,35.27711067,229.12,229.04,4.366]
[1737180208093,35.27711067,229.1,229.04,4.366]
[1737180208370,35.27711067,229.14,229.07,20.0]
[1737180208578,0.063,229.2,229.07,20.0]
[1737180208579,35.27711067,229.12,229.07,20.0]
[1737180208759,35.27711067,229.09,229.01,4.3665]
[1737180209076,35.27711067,229.03,228.97,4.3673]
[1737180209270,35.27711067,229.03,228.92,35.27711067]
[1737180209475,35.27711067,229.18,228.86,43.6948]
[1737180209476,35.27711067,229.05,228.96,35.27711067]
[1737180209678,35.27711067,229.07,228.96,35.27711067]
[1737180209864,6.76,229.12,228.97,20.0]
[1737180210069,35.27711067,229.05,228.97,20.0]
[1737180210370,35.27711067,229.11,229.04,20.0]
[1737180210574,0.063,229.2,229.08,20.0]
[1737180210751,35.27711067,229.11,229.01,35.27711067]
[1737180210956,35.27711067,229.18,228.94,0.6546342]
[1737180210957,35.27711067,229.07,228.96,35.27711067]
[1737180211191,35.27711067,229.07,228.99,20.0]
[1737180211372,0.09062512,229.02,228.99,20.0]
[1737180211586,0.09062512,229.02,228.94,0.654841]
[1737180211772,39.25045414,229.0,228.91,4.3685]
[1737180212081,0.09062512,229.02,228.94,39.25045414]
[1737180212253,0.09062512,229.02,228.92,0.65505944]
[1737180212254,2.512e-05,229.02,229.01,20.0]
[1737180212457,6.29e-06,229.06,229.01,20.65465835]
[1737180212865,4.121e-05,229.07,229.06,20.0]
[1737180213155,4.3617,229.27,228.92,4.81306495]
[1737180213156,3.241e-05,229.08,228.93,0.65453517]
[1737180213351,5.832e-05,229.09,229.06,39.25045414]
[1737180213574,5.832e-05,229.09,229.08,20.0]
[1737180213775,1.98e-06,229.1,229.09,20.0]
[1737180213954,1.98e-06,229.1,229.09,24.365]
[1737180214159,3.943e-05,229.11,229.09,4.365]
[1737180214679,3.943e-05,229.11,229.1,20.0]
[1737180215057,3.943e-05,229.11,229.09,4.365]
[1737180215377,39.25045414,229.1,229.03,4.3662]
[1737180215569,39.25045414,229.05,229.03,4.3662]
[1737180215970,39.25045414,229.05,228.97,15.2857]
[1737180216270,39.25045414,229.03,228.97,15.2857]
[1737180216474,39.25045414,229.07,228.97,54.53615414]
[1737180216981,39.25045414,229.1,229.02,20.0]
[1737180217160,3.943e-05,229.11,229.02,20.0]
[1737180217485,39.25045414,229.06,228.97,71.98620414]
[1737180217681,39.25045414,229.06,228.97,15.2857]
[1737180217995,39.25045414,229.04,228.97,4.3673]
[1737180218166,39.25045414,229.02,228.97,4.3673]
[1737180218370,39.25045414,229.02,228.97,15.2857]
[1737180218672,3.943e-05,229.11,229.04,20.0]
[1737180218871,39.25049357,229.11,229.04,20.0]
[1737180219078,39.25045414,229.05,228.97,15.2857]
[1737180219386,39.25045414,229.05,229.0,20.0]
[1737180219595,39.25045414,229.03,229.0,20.0]
[1737180219888,3.943e-05,229.11,228.97,4.3673]
[1737180219889,39.25045414,229.01,228.97,4.3673]
[1737180220068,3.943e-05,229.11,228.87,26.65856495]
[1737180220069,39.25045414,228.99,228.91,4.3685]
[1737180220391,39.25045414,228.98,228.91,15.2898]
[1737180220579,39.25045414,229.01,228.99,0.03]
[1737180220892,39.25045414,229.0,228.99,0.03]
[1737180221263,0.06303943,229.11,228.99,0.03]
[1737180221463,0.06303943,229.11,229.03,39.25045414]
[1737180221695,0.06303943,229.11,229.08,20.0]
[1737180222069,0.06303943,229.11,229.09,4.365]
[1737180222266,3.943e-05,229.11,229.09,24.365]
[1737180222474,3.943e-05,229.11,229.1,59.25045414]
[1737180222980,3.943e-05,229.11,229.1,20.0]
[1737180223682,3.943e-05,229.11,229.09,4.365]
[1737180224087,3.943e-05,229.11,229.1,20.0]
[1737180224508,3.943e-05,229.11,229.07,4.3653]
[1737180224808,39.25045414,229.08,229.02,4.3664]
[1737180225180,39.25045414,229.04,229.0,4.3666]
[1737180225405,39.25045414,229.02,229.0,4.3666]
[1737180225614,78.50090828,229.02,228.99,0.03]
[1737180225782,39.25045414,229.0,228.99,0.03]
[1737180226375,39.25045414,229.0,228.84,4.3697]
[1737180226579,39.25045414,228.89,228.84,4.3697]
[1737180226999,39.25045414,228.95,228.86,39.25045414]
[1737180227182,39.25045414,229.01,228.92,39.25045414]
[1737180227382,228.728,229.27,228.86,0.65515942]
[1737180227582,39.25045414,229.05,228.96,39.25045414]
[1737180227988,39.25045414,229.05,228.99,20.0]
[1737180228301,39.25045414,229.07,228.99,20.0]
[1737180228602,39.25045414,229.05,228.97,15.2857]
[1737180228989,39.25045414,229.05,229.0,20.0]
[1737180229192,39.25049357,229.11,229.05,20.0]
[1737180229512,39.25045414,229.07,229.05,20.0]
[1737180229677,39.25045414,229.07,228.92,10.9205]
[1737180230001,39.25045414,229.01,228.93,4.3681]
[1737180230207,3.943e-05,229.11,228.93,39.25045414]
[1737180230415,39.25045414,229.05,228.95,39.25045414]
[1737180230616,39.25045414,228.98,228.91,4.3685]
[1737180231397,0.08927896,228.92,228.91,4.3685]
[1737180231595,39.25045414,229.03,228.91,43.61895414]
[1737180231811,39.33298445,229.01,228.91,4.3685]
[1737180232115,0.08253031,229.01,228.97,39.25045414]
[1737180232484,0.08253031,229.01,228.95,39.25045414]
[1737180232692,0.08253031,229.01,228.93,39.25045414]
[1737180233094,0.08253031,229.01,228.96,20.0]
[1737180233287,0.08253031,229.01,228.98,20.0]